[Event "FIDE Grand Swiss 2023"]
[Site "Villa Marina, Douglas, Isle of Man, Isle Of Man"]
[Date "2023.11.02"]
[Round "8.13"]
[White "Yilmaz, Mustafa"]
[Black "Giri, Anish"]
[Result "1/2-1/2"]
[TimeControl "40/90 + 30 + 30s/move"]
[WhiteFideId "6302718"]
[BlackFideId "24116068"]
[WhiteElo "2640"]
[BlackElo "2760"]

1. d4 {[%clk 01:40:57]} {[%emt 00:00:03]} Nf6 {[%clk 01:40:57]} {[%emt
00:00:04]} 2. c4 {[%clk 01:41:23]} {[%emt 00:00:04]} e6 {[%clk 01:41:23]}
{[%emt 00:00:04]} 3. Nf3 {[%clk 01:41:49]} {[%emt 00:00:04]} b6 {[%clk
01:41:49]} {[%emt 00:00:04]} 4. g3 {[%clk 01:41:21]} {[%emt 00:00:57]} Bb7
{[%clk 01:42:15]} {[%emt 00:00:05]} 5. Bg2 {[%clk 01:41:36]} {[%emt 00:00:14]}
Be7 {[%clk 01:42:41]} {[%emt 00:00:04]} 6. O-O {[%clk 01:40:55]} {[%emt
00:01:12]} O-O {[%clk 01:43:06]} {[%emt 00:00:04]} 7. Nc3 {[%clk 01:40:23]}
{[%emt 00:01:02]} Ne4 {[%clk 01:43:31]} {[%emt 00:00:05]} 8. Bd2 {[%clk
01:36:02]} {[%emt 00:04:52]} f5 {[%clk 01:43:42]} {[%emt 00:00:18]} 9. Ne5
{[%clk 01:31:51]} {[%emt 00:04:41]} d6 {[%clk 01:43:33]} {[%emt 00:00:39]} 10.
Nd3 {[%clk 01:28:15]} {[%emt 00:04:06]} Qe8 {[%clk 01:43:01]} {[%emt 00:01:02]}
11. Nf4 {[%clk 01:08:29]} {[%emt 00:20:17]} Nxc3 {[%clk 01:38:48]} {[%emt
00:04:42]} 12. Bxc3 {[%clk 01:08:05]} {[%emt 00:00:54]} Bxg2 {[%clk 01:39:13]}
{[%emt 00:00:05]} 13. Kxg2 {[%clk 00:59:10]} {[%emt 00:09:25]} Bg5 {[%clk
01:38:52]} {[%emt 00:00:51]} 14. d5 {[%clk 00:53:21]} {[%emt 00:06:20]} Bxf4
{[%clk 01:37:26]} {[%emt 00:01:56]} 15. gxf4 {[%clk 00:53:49]} {[%emt
00:00:02]} Nd7 {[%clk 01:23:02]} {[%emt 00:14:54]} 16. dxe6 {[%clk 00:52:24]}
{[%emt 00:01:55]} Qxe6 {[%clk 01:02:36]} {[%emt 00:20:55]} 17. Qd5 {[%clk
00:46:07]} {[%emt 00:06:48]} Rae8 {[%clk 01:01:14]} {[%emt 00:01:52]} 18. Rfe1
{[%clk 00:41:12]} {[%emt 00:05:24]} a5 {[%clk 00:46:33]} {[%emt 00:15:11]} 19.
Rad1 {[%clk 00:36:28]} {[%emt 00:05:15]} Nf6 {[%clk 00:41:04]} {[%emt
00:05:59]} 20. Bxf6 {[%clk 00:32:09]} {[%emt 00:04:49]} Rxf6 {[%clk 00:41:22]}
{[%emt 00:00:12]} 21. e3 {[%clk 00:30:24]} {[%emt 00:02:14]} Kf8 {[%clk
00:34:13]} {[%emt 00:07:40]} 22. Qxe6 {[%clk 00:30:17]} {[%emt 00:00:37]} Rexe6
{[%clk 00:32:30]} {[%emt 00:02:12]} 23. Rd5 {[%clk 00:29:15]} {[%emt 00:01:32]}
Ke7 {[%clk 00:32:23]} {[%emt 00:00:38]} 24. Kf3 {[%clk 00:28:23]} {[%emt
00:01:21]} Rf8 {[%clk 00:31:30]} {[%emt 00:01:23]} 25. Rg1 {[%clk 00:27:32]}
{[%emt 00:01:20]} g6 {[%clk 00:30:27]} {[%emt 00:01:34]} 26. a4 {[%clk
00:27:07]} {[%emt 00:00:55]} Kf6 {[%clk 00:28:42]} {[%emt 00:02:15]} 27. b3
{[%clk 00:27:28]} {[%emt 00:00:09]} Rfe8 {[%clk 00:29:00]} {[%emt 00:00:12]} 28.
Rgd1 {[%clk 00:27:04]} {[%emt 00:00:54]} R6e7 {[%clk 00:29:03]} {[%emt
00:00:28]} 29. Rg1 {[%clk 00:27:25]} {[%emt 00:00:08]} Re6 {[%clk 00:29:30]}
{[%emt 00:00:03]} 30. Rgd1 {[%clk 00:27:52]} {[%emt 00:00:04]} R6e7 {[%clk
00:29:56]} {[%emt 00:00:04]} 31. Rg1 {[%clk 00:28:17]} {[%emt 00:00:04]}
1/2-1/2

[Event "FIDE Grand Swiss 2023"]
[Site "Villa Marina, Douglas, Isle of Man, Isle Of Man"]
[Date "2023.11.02"]
[Round "8.14"]
[White "Yakubboev, Nodirbek"]
[Black "Praggnanandhaa, R"]
[Result "1/2-1/2"]
[TimeControl "40/90 + 30 + 30s/move"]
[WhiteFideId "14203987"]
[BlackFideId "25059530"]
[WhiteElo "2616"]
[BlackElo "2738"]

1. d4 {[%clk 01:40:50]} {[%emt 00:00:08]} Nf6 {[%clk 01:39:56]} {[%emt
00:01:05]} 2. Nf3 {[%clk 01:41:03]} {[%emt 00:00:17]} d5 {[%clk 01:40:07]}
{[%emt 00:00:19]} 3. c4 {[%clk 01:41:27]} {[%emt 00:00:07]} e6 {[%clk
01:40:31]} {[%emt 00:00:05]} 4. Nc3 {[%clk 01:41:51]} {[%emt 00:00:06]} c6
{[%clk 01:40:56]} {[%emt 00:00:06]} 5. e3 {[%clk 01:41:43]} {[%emt 00:00:36]}
Be7 {[%clk 01:40:46]} {[%emt 00:00:42]} 6. Qc2 {[%clk 01:32:39]} {[%emt
00:09:33]} O-O {[%clk 01:40:32]} {[%emt 00:00:44]} 7. b3 {[%clk 01:31:41]}
{[%emt 00:01:29]} dxc4 {[%clk 01:40:46]} {[%emt 00:00:16]} 8. Bxc4 {[%clk
01:28:21]} {[%emt 00:03:50]} b5 {[%clk 01:40:46]} {[%emt 00:00:29]} 9. Bd3
{[%clk 01:28:23]} {[%emt 00:00:27]} Na6 {[%clk 01:39:55]} {[%emt 00:01:22]} 10.
Be2 {[%clk 01:22:26]} {[%emt 00:06:28]} Nb4 {[%clk 01:27:47]} {[%emt 00:12:38]}
11. Qb2 {[%clk 01:22:47]} {[%emt 00:00:09]} Nbd5 {[%clk 01:14:57]} {[%emt
00:13:20]} 12. O-O {[%clk 01:22:27]} {[%emt 00:00:50]} a6 {[%clk 01:09:10]}
{[%emt 00:06:17]} 13. Ne5 {[%clk 01:13:34]} {[%emt 00:09:23]} Bb7 {[%clk
01:06:44]} {[%emt 00:02:55]} 14. Nd3 {[%clk 01:12:41]} {[%emt 00:01:23]} Qb6
{[%clk 00:59:20]} {[%emt 00:07:55]} 15. Bd2 {[%clk 01:11:27]} {[%emt 00:01:43]}
Nxc3 {[%clk 00:52:37]} {[%emt 00:07:14]} 16. Bxc3 {[%clk 00:51:01]} {[%emt
00:20:55]} b4 {[%clk 00:51:57]} {[%emt 00:01:10]} 17. Bd2 {[%clk 00:49:23]}
{[%emt 00:02:08]} a5 {[%clk 00:45:41]} {[%emt 00:06:46]} 18. Rfc1 {[%clk
00:43:00]} {[%emt 00:06:54]} Ba6 {[%clk 00:44:07]} {[%emt 00:02:04]} 19. Rc2
{[%clk 00:30:04]} {[%emt 00:13:26]} Bb5 {[%clk 00:42:04]} {[%emt 00:02:33]} 20.
Be1 {[%clk 00:28:38]} {[%emt 00:01:56]} Nd7 {[%clk 00:36:06]} {[%emt 00:06:28]}
21. Rac1 {[%clk 00:27:02]} {[%emt 00:02:06]} Rac8 {[%clk 00:35:57]} {[%emt
00:00:39]} 22. Nc5 {[%clk 00:19:00]} {[%emt 00:08:32]} Nxc5 {[%clk 00:34:35]}
{[%emt 00:01:53]} 23. dxc5 {[%clk 00:19:28]} {[%emt 00:00:02]} Qa6 {[%clk
00:34:31]} {[%emt 00:00:34]} 24. Bxb5 {[%clk 00:18:33]} {[%emt 00:01:25]} Qxb5
{[%clk 00:34:15]} {[%emt 00:00:45]} 25. Rc4 {[%clk 00:16:03]} {[%emt 00:03:00]}
Rfd8 {[%clk 00:33:28]} {[%emt 00:01:17]} 26. a3 {[%clk 00:13:37]} {[%emt
00:02:56]} bxa3 {[%clk 00:28:07]} {[%emt 00:05:52]} 27. Qxa3 {[%clk 00:13:54]}
{[%emt 00:00:12]} Ra8 {[%clk 00:28:19]} {[%emt 00:00:19]} 28. h3 {[%clk
00:11:06]} {[%emt 00:03:17]} Rdb8 {[%clk 00:19:55]} {[%emt 00:08:54]} 29. R1c3
{[%clk 00:06:17]} {[%emt 00:05:18]} Bf6 {[%clk 00:18:41]} {[%emt 00:01:45]} 30.
Rd3 {[%clk 00:06:46]} {[%emt 00:00:02]} a4 {[%clk 00:17:43]} {[%emt 00:01:27]}
31. Rxa4 {[%clk 00:07:14]} {[%emt 00:00:02]} Rxa4 {[%clk 00:18:07]} {[%emt
00:00:07]} 32. bxa4 {[%clk 00:07:40]} {[%emt 00:00:04]} Qb1 {[%clk 00:18:20]}
{[%emt 00:00:16]} 33. Kf1 {[%clk 00:08:08]} {[%emt 00:00:01]} Kf8 {[%clk
00:13:52]} {[%emt 00:04:59]} 34. Rd2 {[%clk 00:04:51]} {[%emt 00:03:47]} Rb3
{[%clk 00:13:33]} {[%emt 00:00:49]} 35. Qa2 {[%clk 00:05:20]} {[%emt 00:00:01]}
Bc3 {[%clk 00:13:54]} {[%emt 00:00:08]} 36. Re2 {[%clk 00:04:30]} {[%emt
00:01:20]} Qxa2 {[%clk 00:13:20]} {[%emt 00:01:05]} 37. Rxa2 {[%clk 00:04:59]}
{[%emt 00:00:02]} Rb1 {[%clk 00:13:46]} {[%emt 00:00:04]} 38. Re2 {[%clk
00:05:23]} {[%emt 00:00:06]} Ra1 {[%clk 00:14:10]} {[%emt 00:00:06]} 39. f4
{[%emt 00:05:18]} Bxe1 {[%clk 00:13:31]} {[%emt 00:01:06]} 40. Rxe1 Rxa4 41.
Rb1 {[%clk 00:45:10]} {[%emt 00:06:24]} Rc4 {[%clk 01:03:38]} {[%emt 00:00:51]}
42. Rb8+ {[%clk 00:42:10]} {[%emt 00:03:30]} Ke7 {[%clk 01:03:47]} {[%emt
00:00:21]} 43. Rb7+ {[%clk 00:42:39]} {[%emt 00:00:02]} Kf6 {[%clk 01:03:50]}
{[%emt 00:00:26]} 44. Rc7 {[%clk 00:43:02]} {[%emt 00:00:07]} Rxc5 {[%clk
01:04:16]} {[%emt 00:00:04]} 45. Kf2 {[%clk 00:43:29]} {[%emt 00:00:03]} h6
{[%clk 00:57:12]} {[%emt 00:07:34]} 46. Kf3 {[%clk 00:37:50]} {[%emt 00:06:09]}
g5 {[%clk 00:55:54]} {[%emt 00:01:47]} 47. g3 {[%clk 00:38:01]} {[%emt
00:00:20]} Rc4 {[%clk 00:50:46]} {[%emt 00:05:39]} 48. h4 {[%clk 00:37:57]}
{[%emt 00:00:34]} gxh4 {[%clk 00:48:58]} {[%emt 00:02:17]} 49. gxh4 {[%clk
00:38:14]} {[%emt 00:00:11]} h5 {[%clk 00:46:46]} {[%emt 00:02:44]} 50. Ke2
{[%clk 00:37:45]} {[%emt 00:00:59]} Rc5 {[%clk 00:44:07]} {[%emt 00:03:09]} 51.
Kf3 {[%clk 00:36:41]} {[%emt 00:01:34]} Rc1 {[%clk 00:44:32]} {[%emt 00:00:05]}
52. Ke4 {[%clk 00:34:27]} {[%emt 00:02:44]} c5 {[%clk 00:42:24]} {[%emt
00:02:38]} 53. Rc6 {[%clk 00:31:40]} {[%emt 00:03:16]} Kg6 {[%clk 00:41:04]}
{[%emt 00:01:50]} 54. Ke5 {[%clk 00:26:23]} {[%emt 00:05:48]} Kg7 {[%clk
00:36:32]} {[%emt 00:05:02]} 55. Ke4 {[%clk 00:26:34]} {[%emt 00:00:20]} Kf6
{[%clk 00:34:48]} {[%emt 00:02:12]} 56. Rc7 {[%clk 00:26:43]} {[%emt 00:00:22]}
Kg6 {[%clk 00:35:03]} {[%emt 00:00:15]} 57. Rc8 {[%clk 00:23:21]} {[%emt
00:03:51]} Kg7 {[%clk 00:33:06]} {[%emt 00:02:27]} 58. Rc7 {[%clk 00:22:27]}
{[%emt 00:01:24]} c4 {[%clk 00:33:31]} {[%emt 00:00:06]} 59. Rc5 {[%clk
00:18:51]} {[%emt 00:04:06]} Kh6 {[%clk 00:33:19]} {[%emt 00:00:42]} 60. Kd4
{[%clk 00:08:28]} {[%emt 00:10:52]} Rh1 {[%clk 00:31:43]} {[%emt 00:02:06]} 61.
Rxc4 {[%clk 00:03:43]} {[%emt 00:05:16]} Rxh4 {[%clk 00:31:49]} {[%emt
00:00:24]} 62. Ke5 {[%clk 00:04:01]} {[%emt 00:00:12]} Kg7 {[%clk 00:29:03]}
{[%emt 00:03:16]} 63. Rc7 {[%clk 00:00:32]} {[%emt 00:03:59]} Rh3 {[%clk
00:24:30]} {[%emt 00:05:03]} 64. e4 {[%clk 00:12:38]} {[%emt 00:03:24]} Rf3
{[%emt 00:05:26]} 65. f5 {[%clk 00:12:28]} {[%emt 00:00:01]} exf5 {[%clk
00:34:59]} {[%emt 00:00:44]} 66. exf5 {[%clk 00:12:56]} {[%emt 00:00:02]} Rg3
{[%clk 00:24:39]} {[%emt 00:10:49]} 67. Rb7 {[%clk 00:11:14]} {[%emt 00:02:13]}
Rg4 {[%clk 00:22:25]} {[%emt 00:02:44]} 68. f6+ {[%clk 00:07:45]} {[%emt
00:03:59]} Kg6 {[%clk 00:22:23]} {[%emt 00:00:31]} 69. Rb8 {[%clk 00:08:12]}
{[%emt 00:00:03]} Rg5+ {[%clk 00:22:05]} {[%emt 00:00:49]} 70. Kf4 {[%clk
00:08:41]} Ra5 {[%clk 00:20:38]} {[%emt 00:01:57]} 71. Kg3 {[%clk 00:08:36]}
{[%emt 00:00:37]} Ra3+ {[%clk 00:19:28]} {[%emt 00:01:39]} 72. Kh4 {[%clk
00:08:39]} {[%emt 00:00:26]} Ra4+ {[%clk 00:19:52]} {[%emt 00:00:07]} 73. Kg3
{[%clk 00:09:08]} {[%emt 00:00:01]} Kxf6 {[%clk 00:20:15]} {[%emt 00:00:07]} 74.
Rb6+ {[%clk 00:08:14]} {[%emt 00:01:24]} Kg5 {[%clk 00:20:33]} {[%emt
00:00:12]} 75. Rb5+ {[%clk 00:08:39]} {[%emt 00:00:04]} f5 {[%clk 00:20:54]}
{[%emt 00:00:09]} 76. Rb8 {[%clk 00:09:07]} {[%emt 00:00:03]} h4+ {[%clk
00:18:23]} {[%emt 00:03:02]} 77. Kh3 {[%clk 00:09:30]} {[%emt 00:00:06]} Ra3+
{[%clk 00:18:48]} {[%emt 00:00:05]} 78. Kg2 {[%clk 00:09:54]} {[%emt 00:00:05]}
Kg4 {[%clk 00:18:44]} {[%emt 00:00:34]} 79. Rg8+ {[%clk 00:09:44]} {[%emt
00:00:40]} Kf4 {[%clk 00:19:08]} {[%emt 00:00:07]} 80. Rh8 {[%clk 00:10:12]}
{[%emt 00:00:03]} h3+ {[%clk 00:16:38]} {[%emt 00:03:00]} 81. Kh2 {[%clk
00:10:40]} {[%emt 00:00:01]} Re3 {[%clk 00:16:40]} {[%emt 00:00:28]} 82. Ra8
{[%clk 00:07:40]} {[%emt 00:03:29]} Ke4 {[%clk 00:15:32]} {[%emt 00:01:39]} 83.
Ra4+ {[%clk 00:05:10]} {[%emt 00:02:59]} Ke5 {[%clk 00:15:52]} {[%emt
00:00:10]} 84. Ra5+ {[%clk 00:05:06]} {[%emt 00:00:34]} Kf6 {[%clk 00:16:21]}
{[%emt 00:00:03]} 85. Ra6+ {[%clk 00:04:20]} {[%emt 00:01:16]} Kg5 {[%clk
00:16:42]} {[%emt 00:00:08]} 86. Ra8 {[%clk 00:04:46]} {[%emt 00:00:04]} f4
{[%clk 00:16:45]} {[%emt 00:00:27]} 87. Rg8+ {[%clk 00:03:16]} {[%emt
00:01:59]} Kf5 {[%clk 00:17:06]} {[%emt 00:00:10]} 88. Rf8+ {[%clk 00:03:12]}
{[%emt 00:00:33]} Ke4 {[%clk 00:17:34]} {[%emt 00:00:03]} 89. Ra8 {[%clk
00:01:57]} {[%emt 00:01:45]} Kf5 {[%clk 00:17:13]} {[%emt 00:00:51]} 90. Rf8+
{[%clk 00:01:58]} {[%emt 00:00:28]} Kg4 {[%clk 00:17:38]} {[%emt 00:00:06]} 91.
Rg8+ {[%clk 00:02:25]} {[%emt 00:00:03]} Kf3 {[%clk 00:18:02]} {[%emt
00:00:06]} 92. Ra8 {[%clk 00:02:51]} {[%emt 00:00:04]} Kf2 {[%clk 00:17:32]}
{[%emt 00:01:00]} 93. Ra1 {[%clk 00:01:34]} {[%emt 00:01:48]} Re1 {[%clk
00:16:38]} {[%emt 00:01:24]} 94. Ra2+ {[%clk 00:01:45]} {[%emt 00:00:19]} Kf1
{[%clk 00:16:16]} {[%emt 00:00:51]} 95. Ra3 {[%clk 00:01:16]} {[%emt 00:00:59]}
Re2+ {[%clk 00:09:27]} {[%emt 00:07:19]} 96. Kh1 {[%clk 00:01:44]} {[%emt
00:00:02]} Kf2 {[%clk 00:07:51]} {[%emt 00:02:06]} 97. Kh2 {[%clk 00:01:22]}
{[%emt 00:00:52]} Re8 {[%clk 00:07:50]} {[%emt 00:00:31]} 98. Ra2+ {[%clk
00:01:14]} {[%emt 00:00:38]} Kf3 {[%clk 00:08:18]} {[%emt 00:00:02]} 99. Ra7
{[%clk 00:01:22]} {[%emt 00:00:22]} Rb8 {[%clk 00:08:16]} {[%emt 00:00:32]} 100.
Ra6 {[%clk 00:01:08]} {[%emt 00:00:44]} Rb1 {[%clk 00:07:56]} {[%emt 00:00:49]}
101. Ra8 {[%clk 00:01:05]} {[%emt 00:00:34]} Re1 {[%clk 00:08:15]} {[%emt
00:00:11]} 102. Ra7 {[%clk 00:00:42]} {[%emt 00:00:53]} Re5 {[%clk 00:08:27]}
{[%emt 00:00:18]} 103. Ra8 {[%clk 00:00:43]} {[%emt 00:00:29]} Re3 {[%clk
00:07:47]} {[%emt 00:01:10]} 104. Kxh3 {[%clk 00:00:51]} {[%emt 00:00:22]} Ke2+
{[%clk 00:08:09]} {[%emt 00:00:07]} 105. Kh2 {[%clk 00:01:17]} {[%emt
00:00:04]} f3 {[%clk 00:08:36]} {[%emt 00:00:04]} 106. Ra1 {[%clk 00:01:32]}
{[%emt 00:00:15]} Kf2 {[%clk 00:08:26]} {[%emt 00:00:40]} 107. Rb1 {[%clk
00:01:44]} {[%emt 00:00:18]} Re8 {[%clk 00:08:23]} {[%emt 00:00:32]} 108. Rb2+
{[%clk 00:02:10]} {[%emt 00:00:05]} Re2 {[%clk 00:08:49]} {[%emt 00:00:03]} 109.
Rb1 {[%clk 00:02:36]} {[%emt 00:00:05]} Ra2 {[%clk 00:09:13]} {[%emt 00:00:06]}
110. Kh3 {[%clk 00:02:44]} {[%emt 00:00:22]} Ke3 {[%clk 00:09:27]} {[%emt
00:00:16]} 111. Kg3 {[%clk 00:02:42]} {[%emt 00:00:31]} Ke2 {[%clk 00:09:53]}
{[%emt 00:00:05]} 112. Kh3 {[%clk 00:02:30]} {[%emt 00:00:42]} Kf2 {[%clk
00:09:24]} {[%emt 00:00:59]} 113. Kh2 {[%clk 00:02:51]} {[%emt 00:00:09]} Rd2
{[%clk 00:09:47]} {[%emt 00:00:07]} 114. Ra1 {[%clk 00:02:48]} {[%emt
00:00:33]} Re2 {[%clk 00:10:11]} {[%emt 00:00:06]} 115. Rb1 {[%clk 00:02:45]}
{[%emt 00:00:34]} Re3 {[%clk 00:10:20]} {[%emt 00:00:20]} 116. Ra1 {[%clk
00:03:02]} {[%emt 00:00:13]} Re1 {[%clk 00:10:48]} {[%emt 00:00:03]} 117. Ra2+
{[%clk 00:03:25]} {[%emt 00:00:07]} Ke3 {[%clk 00:11:16]} {[%emt 00:00:01]} 118.
Ra3+ {[%clk 00:03:41]} {[%emt 00:00:14]} Kf4 {[%clk 00:11:34]} {[%emt
00:00:12]} 119. Ra4+ {[%clk 00:03:48]} {[%emt 00:00:23]} Re4 {[%clk 00:12:00]}
{[%emt 00:00:03]} 120. Ra8 {[%clk 00:03:25]} {[%emt 00:00:54]} Re1 {[%clk
00:11:58]} {[%emt 00:00:31]} 121. Ra4+ {[%clk 00:03:38]} {[%emt 00:00:17]} Ke3
{[%clk 00:12:25]} {[%emt 00:00:04]} 122. Ra3+ {[%clk 00:04:01]} {[%emt
00:00:08]} Ke2 {[%clk 00:12:51]} {[%emt 00:00:03]} 123. Ra2+ {[%clk 00:04:21]}
{[%emt 00:00:10]} Kf1 {[%clk 00:13:20]} {[%emt 00:00:01]} 124. Kg3 {[%clk
00:04:43]} {[%emt 00:00:08]} Re3 {[%clk 00:13:48]} {[%emt 00:00:02]} 125. Rf2+
{[%clk 00:05:07]} {[%emt 00:00:06]} Ke1 {[%clk 00:14:17]} {[%emt 00:00:01]} 126.
Rxf3 {[%clk 00:05:30]} {[%emt 00:00:07]} Rxf3+ {[%clk 00:14:46]} 127. Kxf3
{[%clk 00:05:59]} {[%emt 00:00:02]} 1/2-1/2

[Event "FIDE Grand Swiss 2023"]
[Site "Villa Marina, Douglas, Isle of Man, Isle Of Man"]
[Date "2023.11.02"]
[Round "8.15"]
[White "Vachier-Lagrave, Maxime"]
[Black "Pichot, Alan"]
[Result "1-0"]
[TimeControl "40/90 + 30 + 30s/move"]
[WhiteFideId "623539"]
[BlackFideId "110973"]
[WhiteElo "2727"]
[BlackElo "2650"]

1. e4 {[%clk 01:40:57]} {[%emt 00:00:02]} e5 {[%clk 01:40:45]} {[%emt
00:00:16]} 2. Nf3 {[%clk 01:41:24]} {[%emt 00:00:03]} Nc6 {[%clk 01:41:09]}
{[%emt 00:00:07]} 3. Bb5 {[%clk 01:41:52]} {[%emt 00:00:02]} a6 {[%clk
01:41:18]} {[%emt 00:00:21]} 4. Ba4 {[%clk 01:42:20]} {[%emt 00:00:02]} Nf6
{[%clk 01:41:28]} {[%emt 00:00:19]} 5. O-O {[%clk 01:42:47]} {[%emt 00:00:04]}
b5 {[%clk 01:40:59]} {[%emt 00:00:58]} 6. Bb3 {[%clk 01:43:13]} {[%emt
00:00:05]} Bc5 {[%clk 01:41:16]} {[%emt 00:00:12]} 7. a4 {[%clk 01:43:37]}
{[%emt 00:00:07]} Bb7 {[%clk 01:41:09]} {[%emt 00:00:37]} 8. d3 {[%clk
01:44:00]} {[%emt 00:00:08]} O-O {[%clk 01:36:53]} {[%emt 00:04:45]} 9. Bg5
{[%clk 01:44:12]} {[%emt 00:00:18]} h6 {[%clk 01:29:01]} {[%emt 00:08:22]} 10.
Bh4 {[%clk 01:44:12]} {[%emt 00:00:30]} Be7 {[%clk 01:25:21]} {[%emt 00:04:10]}
11. c3 {[%clk 01:44:17]} {[%emt 00:00:25]} d6 {[%clk 01:22:53]} {[%emt
00:02:57]} 12. Nbd2 {[%clk 01:40:05]} {[%emt 00:04:42]} Nd7 {[%clk 01:18:06]}
{[%emt 00:05:18]} 13. Bg3 {[%clk 01:39:50]} {[%emt 00:00:45]} Na5 {[%clk
01:10:57]} {[%emt 00:07:38]} 14. Bc2 {[%clk 01:28:32]} {[%emt 00:11:48]} c5
{[%clk 01:09:17]} {[%emt 00:02:11]} 15. Re1 {[%clk 01:24:13]} {[%emt 00:04:49]}
Re8 {[%clk 01:02:05]} {[%emt 00:07:41]} 16. Nf1 {[%clk 01:20:56]} {[%emt
00:03:47]} Bf8 {[%clk 01:01:05]} {[%emt 00:01:31]} 17. Ne3 {[%clk 01:19:08]}
{[%emt 00:02:19]} Nb6 {[%clk 01:00:14]} {[%emt 00:01:20]} 18. Bh4 {[%clk
01:05:37]} {[%emt 00:14:00]} Be7 {[%clk 00:52:09]} {[%emt 00:08:35]} 19. Bxe7
{[%clk 01:05:41]} {[%emt 00:00:26]} Qxe7 {[%clk 00:51:50]} {[%emt 00:00:50]} 20.
b4 {[%clk 01:05:51]} {[%emt 00:00:20]} cxb4 {[%clk 00:46:57]} {[%emt 00:05:22]}
21. cxb4 {[%clk 01:06:04]} {[%emt 00:00:18]} Nc6 {[%clk 00:47:19]} {[%emt
00:00:06]} 22. a5 {[%clk 01:05:37]} {[%emt 00:00:59]} Nd7 {[%clk 00:47:12]}
{[%emt 00:00:37]} 23. Nd5 {[%clk 00:58:31]} {[%emt 00:07:36]} Qd8 {[%clk
00:47:29]} {[%emt 00:00:13]} 24. Bb3 {[%clk 00:57:54]} {[%emt 00:01:07]} Ne7
{[%clk 00:44:51]} {[%emt 00:03:07]} 25. Ne3 {[%clk 00:53:56]} {[%emt 00:04:28]}
Ng6 {[%clk 00:38:00]} {[%emt 00:07:20]} 26. Rc1 {[%clk 00:52:47]} {[%emt
00:01:40]} Nf6 {[%clk 00:37:26]} {[%emt 00:01:05]} 27. g3 {[%clk 00:49:15]}
{[%emt 00:04:02]} Rc8 {[%clk 00:32:45]} {[%emt 00:05:10]} 28. Qd2 {[%clk
00:46:32]} {[%emt 00:03:14]} Rxc1 {[%clk 00:27:13]} {[%emt 00:06:02]} 29. Rxc1
{[%clk 00:44:53]} {[%emt 00:02:09]} Qd7 {[%clk 00:27:34]} {[%emt 00:00:09]} 30.
Qa2 {[%clk 00:36:41]} {[%emt 00:08:42]} Rc8 {[%clk 00:21:48]} {[%emt 00:06:15]}
31. Rxc8+ {[%clk 00:37:04]} {[%emt 00:00:08]} Bxc8 {[%clk 00:22:13]} {[%emt
00:00:05]} 32. Kf1 {[%clk 00:30:52]} {[%emt 00:06:41]} Bb7 {[%clk 00:20:27]}
{[%emt 00:02:16]} 33. Ke2 {[%clk 00:30:01]} {[%emt 00:01:22]} Nf8 {[%clk
00:11:29]} {[%emt 00:09:28]} 34. Nf5 {[%clk 00:21:21]} {[%emt 00:09:10]} Ne6
{[%clk 00:08:15]} {[%emt 00:03:43]} 35. Bxe6 {[%clk 00:21:27]} {[%emt
00:00:25]} fxe6 {[%clk 00:08:37]} {[%emt 00:00:08]} 36. Ne3 {[%clk 00:21:47]}
{[%emt 00:00:10]} Kf8 {[%clk 00:06:51]} {[%emt 00:02:16]} 37. Qc2 {[%clk
00:19:47]} {[%emt 00:02:29]} Ke7 {[%clk 00:06:09]} {[%emt 00:01:12]} 38. Nd2
{[%clk 00:19:34]} {[%emt 00:00:44]} g5 {[%clk 00:03:29]} {[%emt 00:03:10]} 39.
f3 {[%clk 00:15:38]} {[%emt 00:04:26]} Qc6 {[%clk 00:03:14]} {[%emt 00:00:45]}
40. Qb2 {[%clk 00:15:20]} {[%emt 00:00:49]} Bc8 {[%clk 00:02:06]} {[%emt
00:01:37]} 41. Nb3 {[%clk 00:12:01]} {[%emt 00:03:48]} Bd7 {[%clk 00:47:14]}
{[%emt 00:05:22]} 42. Kd2 {[%clk 01:01:45]} {[%emt 00:00:46]} Qc8 {[%clk
00:43:48]} {[%emt 00:03:57]} 43. Qa1 {[%clk 01:01:44]} {[%emt 00:00:31]} Qe8
{[%clk 00:41:19]} {[%emt 00:02:58]} 44. Qg1 {[%clk 01:00:53]} {[%emt 00:01:19]}
h5 {[%clk 00:37:30]} {[%emt 00:04:20]} 45. h3 {[%clk 00:49:58]} {[%emt
00:11:25]} Qg6 {[%clk 00:36:09]} {[%emt 00:01:52]} 46. g4 {[%clk 00:44:09]}
{[%emt 00:06:19]} hxg4 {[%clk 00:32:15]} {[%emt 00:04:24]} 47. Nxg4 {[%clk
00:39:19]} {[%emt 00:05:20]} Nh5 {[%clk 00:27:44]} {[%emt 00:05:01]} 48. d4
{[%clk 00:21:02]} {[%emt 00:18:47]} exd4 {[%clk 00:23:42]} {[%emt 00:04:33]} 49.
e5 {[%clk 00:21:27]} {[%emt 00:00:05]} d5 {[%clk 00:22:29]} {[%emt 00:01:43]}
50. Qxd4 {[%clk 00:20:33]} {[%emt 00:01:24]} Nf4 {[%clk 00:21:45]} {[%emt
00:01:14]} 51. Qc5+ {[%clk 00:20:23]} {[%emt 00:00:40]} Kf7 {[%clk 00:18:53]}
{[%emt 00:03:22]} 52. Qc2 {[%clk 00:18:44]} {[%emt 00:02:08]} Qxc2+ {[%clk
00:12:41]} {[%emt 00:06:42]} 53. Kxc2 {[%clk 00:19:11]} {[%emt 00:00:04]} Nxh3
{[%clk 00:12:53]} {[%emt 00:00:18]} 54. Kd3 {[%clk 00:19:10]} {[%emt 00:00:31]}
Ke7 {[%clk 00:06:47]} {[%emt 00:06:35]} 55. Kd4 {[%clk 00:18:46]} {[%emt
00:00:54]} Nf4 {[%clk 00:04:55]} {[%emt 00:02:22]} 56. Nf2 {[%clk 00:18:28]}
{[%emt 00:00:48]} Kd8 {[%clk 00:03:46]} {[%emt 00:01:39]} 57. Nc5 {[%clk
00:17:24]} {[%emt 00:01:34]} Bc8 {[%clk 00:04:02]} {[%emt 00:00:15]} 58. Ncd3
{[%clk 00:17:46]} {[%emt 00:00:07]} Ne2+ {[%clk 00:02:30]} {[%emt 00:02:02]} 59.
Ke3 {[%clk 00:15:02]} {[%emt 00:03:15]} Ng1 {[%clk 00:02:19]} {[%emt 00:00:40]}
60. Ne1 {[%clk 00:14:24]} {[%emt 00:01:08]} Bb7 {[%clk 00:01:15]} {[%emt
00:01:34]} 61. Nc2 {[%clk 00:14:09]} {[%emt 00:00:46]} Ke7 {[%clk 00:10:07]}
{[%emt 00:06:38]} 62. Nd4 {[%clk 00:28:51]} {[%emt 00:00:48]} Kf7 {[%clk
00:10:30]} {[%emt 00:00:06]} 63. f4 {[%clk 00:22:43]} {[%emt 00:06:38]} Kg6
{[%clk 00:09:28]} {[%emt 00:01:32]} 64. fxg5 {[%clk 00:21:48]} {[%emt
00:01:26]} Kxg5 {[%clk 00:09:40]} {[%emt 00:00:17]} 65. Nd3 {[%clk 00:22:13]}
{[%emt 00:00:05]} Bc8 {[%clk 00:05:25]} {[%emt 00:04:45]} 66. Kf2 {[%clk
00:22:31]} {[%emt 00:00:13]} Nh3+ {[%clk 00:05:44]} {[%emt 00:00:10]} 67. Kg3
{[%clk 00:22:57]} {[%emt 00:00:04]} Ng1 {[%clk 00:06:09]} {[%emt 00:00:05]} 68.
Kg2 {[%clk 00:23:22]} {[%emt 00:00:04]} 1-0